bitfinex-derivatives/quotes_SOLF0:USTF0_20250415
["timestamp","ask_amount","ask_price","bid_price","bid_amount"]
[1744714647251,4.1142,132.37,132.3,7.26338286]
[1744714647447,2.0314,132.4,132.32,7.26338286]
[1744714647644,2.0314,132.4,132.32,36.42338286]
[1744714648044,7.5549,132.38,132.35,7.5562]
[1744714648240,7.5549,132.38,132.35,7.61233875]
[1744714648550,7.5557,132.36,132.35,0.05613875]
[1744714650251,36.42338286,132.37,132.29,29.16]
[1744714650452,7.26338286,132.35,132.29,29.16]
[1744714650749,7.5589,132.31,132.29,29.16]
[1744714651251,7.61017243,132.31,132.29,29.21031805]
[1744714659259,0.05127243,132.31,132.29,29.21031805]
[1744714659458,29.16,132.37,132.3,7.26338286]
[1744714659756,7.5577,132.33,132.3,14.82218286]
[1744714660553,7.5582,132.32,132.3,7.61128657]
[1744714660860,7.5582,132.32,132.3,0.05248657]
[1744714661559,7.5586,132.31,132.3,0.05248657]
[1744714665752,7.26338286,132.31,132.25,31.1395]
[1744714665957,7.5612,132.27,132.25,31.1395]
[1744714666359,7.5604,132.28,132.25,31.1395]
[1744714666853,7.5604,132.28,132.25,31.19043113]
[1744714667058,7.61271204,132.28,132.25,31.19043113]
[1744714667558,0.05231204,132.28,132.26,7.5612]
[1744714668461,29.14,132.33,132.26,7.26338286]
[1744714668654,2.0649,132.34,132.26,7.26338286]
[1744714668854,2.0649,132.34,132.27,1.9843]
[1744714669161,7.5584,132.32,132.29,7.5594]
[1744714669361,2.0649,132.34,132.29,7.5594]
[1744714669660,2.0649,132.34,132.3,0.04797079]
[1744714670161,7.26338286,132.35,132.3,7.60697079]
[1744714670357,7.5578,132.33,132.3,7.60697079]
[1744714670560,29.14,132.36,132.3,7.31135365]
[1744714670860,2.0804,132.37,132.32,7.5576]
[1744714671061,2.0804,132.37,132.33,0.05025169]
[1744714671561,7.5568,132.35,132.33,0.05025169]
[1744714673158,7.5554,132.37,132.33,0.05025169]
[1744714673362,7.5554,132.37,132.33,29.19025169]
[1744714673757,7.5568,132.34,132.33,0.05025169]
[1744714673960,7.26338286,132.39,132.32,0.05331828]
[1744714674364,7.556,132.36,132.33,7.557]
[1744714674662,7.556,132.36,132.33,7.61499079]
[1744714674862,7.556,132.36,132.34,7.5566]
[1744714675962,7.26338286,132.41,132.33,0.05799079]
[1744714676159,33.0906,132.42,132.36,0.04811098]
[1744714676360,7.5544,132.39,132.36,0.04811098]
[1744714676867,7.5544,132.39,132.37,7.5547]
[1744714677262,7.5544,132.39,132.36,0.04811098]
[1744714677562,7.5544,132.39,132.36,7.60361098]
[1744714677868,7.26338286,132.39,132.36,0.04811098]
[1744714678262,29.12,132.38,132.36,0.04811098]
[1744714678566,7.5551,132.37,132.36,0.04811098]
[1744714681676,7.558,132.32,132.31,29.12]
[1744714682172,7.26338286,132.37,132.31,36.6781]
[1744714682372,7.5571,132.34,132.31,36.6781]
[1744714682668,29.12,132.38,132.31,29.12]
[1744714682872,0.05697895,132.34,132.31,29.17499574]
[1744714683573,0.05697895,132.34,132.33,7.5574]
[1744714684275,36.38338286,132.41,132.32,7.26338286]
[1744714684774,36.38338286,132.41,132.34,7.5568]
[1744714684775,7.5561,132.36,132.34,7.5568]
[1744714685275,7.5561,132.36,132.34,7.61391975]
[1744714685475,7.5563,132.35,132.34,0.05711975]
[1744714687678,7.5559,132.36,132.34,0.05711975]
[1744714687873,7.26338286,132.39,132.34,0.05711975]
[1744714688278,7.5556,132.37,132.34,0.05711975]
[1744714688577,36.38338286,132.41,132.34,0.05711975]
[1744714688778,7.556,132.36,132.34,7.61371975]
[1744714691573,7.5563,132.35,132.34,0.05711975]
[1744714700383,7.5586,132.31,132.28,544.12]
[1744714700578,6.0877,132.36,132.28,544.12]
[1744714700885,7.26338286,132.33,132.27,29.1]
[1744714701084,7.5594,132.3,132.28,7.56]
[1744714701386,7.26338286,132.33,132.27,29.1]
[1744714701587,0.05465149,132.3,132.28,0.05542054]
[1744714702086,7.5597,132.29,132.28,0.05542054]
[1744714704780,0.05465149,132.3,132.28,0.05542054]
[1744714704988,0.05465149,132.3,132.29,29.1]
[1744714705586,0.05465149,132.3,132.29,36.6597]
[1744714708286,7.5576,132.33,132.31,7.5583]
[1744714709488,7.5576,132.33,132.31,7.60632344]
[1744714710982,29.1,132.37,132.31,0.04802344]
[1744714711186,29.1,132.4,132.32,7.26338286]
[1744714711381,29.1,132.4,132.35,0.05303433]
[1744714711881,7.556,132.36,132.35,0.05303433]
[1744714713889,7.5585,132.32,132.28,29.1]
[1744714714187,31.2027,132.36,132.28,29.1]
[1744714714390,7.5586,132.31,132.29,7.5594]
[1744714714889,7.60623481,132.31,132.29,0.05210011]
[1744714715690,0.04763481,132.31,132.29,0.05210011]
[1744714717189,0.04763481,132.31,132.3,7.5591]
[1744714718389,31.2027,132.36,132.32,7.5579]
[1744714718685,7.5571,132.34,132.32,7.5579]
[1744714718991,2.1027,132.36,132.29,7.26338286]
[1744714719187,29.1,132.39,132.31,7.26338286]
[1744714719387,29.1,132.39,132.34,0.05724782]
[1744714719590,7.5567,132.35,132.34,0.05724782]
[1744714720292,29.1,132.39,132.34,0.05724782]
[1744714721892,7.5563,132.35,132.34,0.05724782]
[1744714723999,7.26338286,132.36,132.29,29.1]
[1744714724292,9.29078286,132.36,132.29,29.1]
[1744714724490,9.29078286,132.36,132.3,7.5588]
[1744714724692,9.29078286,132.36,132.29,29.1]
[1744714724895,0.05026978,132.34,132.31,0.05640586]
[1744714725588,7.5577,132.33,132.31,7.61490586]
[1744714725790,0.05026978,132.34,132.31,0.05640586]
[1744714727092,7.60736978,132.34,132.32,7.5577]
[1744714727895,0.05026978,132.34,132.33,7.5574]
[1744714729897,7.60726978,132.34,132.32,7.5577]
[1744714730290,0.05026978,132.34,132.32,7.5577]
[1744714730492,0.05026978,132.34,132.33,7.5574]
[1744714733297,0.05026978,132.34,132.32,7.5576]
[1744714733696,0.05026978,132.34,132.31,0.05640586]
[1744714733896,0.05026978,132.34,132.33,7.5574]
[1744714735296,7.60706978,132.34,132.31,9.59080586]
[1744714735499,7.60706978,132.34,132.31,7.61450586]
[1744714736499,7.60706978,132.34,132.32,7.5579]
[1744714737295,0.05026978,132.34,132.33,7.5574]
[1744714738399,0.05026978,132.34,132.32,7.5577]
[1744714739199,0.05026978,132.34,132.33,7.5574]
[1744714739598,0.05026978,132.34,132.31,0.05640586]
[1744714739801,0.05026978,132.34,132.32,7.5575]
[1744714740001,0.05026978,132.34,132.31,0.05640586]
[1744714740200,0.05026978,132.34,132.31,7.31978872]
[1744714740900,0.05026978,132.34,132.32,2.0323]
[1744714741100,0.05026978,132.34,132.33,29.08]
[1744714741297,36.34338286,132.42,132.33,36.34338286]
[1744714741601,7.26338286,132.4,132.33,29.08]
[1744714741801,7.5565,132.35,132.33,29.08]
[1744714742399,7.58134665,132.35,132.33,29.1326561]
[1744714742604,7.5568,132.34,132.33,29.1326561]
[1744714742805,0.02484665,132.35,132.33,29.1326561]
[1744714743304,7.58154665,132.35,132.33,29.1326561]
[1744714744005,7.5568,132.34,132.33,29.1326561]
[1744714744194,7.5568,132.34,132.33,0.0526561]
[1744714749009,7.58114665,132.35,132.33,0.0526561]
[1744714749610,0.02484665,132.35,132.33,0.0526561]
[1744714750111,0.02484665,132.35,132.34,7.5568]
[1744714752610,0.02484665,132.35,132.34,36.6368]
[1744714753510,0.02484665,132.35,132.34,29.08]
[1744714754211,7.58114665,132.35,132.34,29.08]
[1744714756314,0.02484665,132.35,132.34,29.08]
[1744714756813,0.02484665,132.35,132.33,7.6099561]
[1744714757410,7.58114665,132.35,132.33,7.6099561]
[1744714758513,0.02484665,132.35,132.33,7.6099561]
[1744714760114,0.02484665,132.35,132.34,7.5568]
[1744714760813,29.08,132.41,132.37,7.5549]
[1744714761715,7.5535,132.4,132.37,7.5549]
[1744714762014,29.08,132.41,132.37,7.61159565]
[1744714762214,29.08,132.41,132.37,0.05669565]
[1744714763306,7.5546,132.38,132.37,0.05669565]
[1744714773025,29.08,132.41,132.37,0.05669565]
[1744714773525,29.08,132.41,132.38,7.5546]
[1744714773725,29.08,132.41,132.37,0.05669565]
[1744714774123,7.5546,132.38,132.37,0.05669565]
[1744714776026,7.5567,132.35,132.32,29.04]
[1744714776227,7.26338286,132.38,132.32,29.04]
[1744714776825,7.5571,132.34,132.32,29.04]
[1744714777129,7.6112476,132.34,132.32,29.08851177]
[1744714778124,7.5574,132.33,132.32,29.08851177]
[1744714778331,7.5574,132.33,132.32,0.04851177]
[1744714781131,0.0541476,132.34,132.32,0.04851177]
[1744714781430,0.0541476,132.34,132.32,7.31189463]
[1744714781822,0.0541476,132.34,132.33,7.5574]
[1744714782331,38.29488286,132.4,132.32,7.31189463]
[1744714782532,7.5546,132.38,132.35,7.5562]
[1744714782726,38.29488286,132.4,132.35,7.5562]
[1744714783131,38.29488286,132.4,132.33,29.04]
[1744714783329,38.29488286,132.4,132.35,0.05414195]
[1744714783631,7.5554,132.37,132.35,0.05414195]
[1744714783828,38.29488286,132.4,132.35,0.05414195]
[1744714784028,7.26338286,132.38,132.35,0.05414195]
[1744714784233,7.5557,132.36,132.35,0.05414195]
[1744714790741,7.5582,132.32,132.3,29.04]
[1744714790942,36.26338286,132.36,132.3,36.5989]
[1744714791445,7.5577,132.33,132.3,36.5989]
[1744714791836,7.558,132.32,132.3,36.65246476]
[1744714792142,0.04896098,132.33,132.3,0.05356476]
[1744714792338,7.5586,132.31,132.3,0.05356476]
[1744714793242,7.5583,132.32,132.3,0.05356476]
[1744714793542,0.04896098,132.33,132.3,0.05356476]
[1744714794046,7.60676098,132.33,132.31,7.5586]
[1744714794343,0.04896098,132.33,132.3,0.05356476]
[1744714794844,7.558,132.32,132.3,7.61246476]
[1744714796245,7.558,132.32,132.31,7.5586]
[1744714797347,7.558,132.32,132.3,12.26839316]
[1744714798647,7.5584,132.32,132.3,12.26859316]
[1744714799955,0.04896098,132.33,132.31,4.6559284]
[1744714800451,0.04896098,132.33,132.32,7.558]
[1744714800646,4.6559284,132.4,132.32,4.6559284]
[1744714800850,4.6559284,132.41,132.36,4.6559284]
[1744714801654,4.6559284,132.41,132.37,0.05041039]
[1744714801856,4.6559284,132.38,132.37,0.05041039]
[1744714802057,4.6559284,132.38,132.32,4.6559284]
[1744714802252,4.6559284,132.36,132.31,33.6759284]
[1744714802754,7.5574,132.34,132.31,41.2342284]
[1744714803053,4.6559284,132.35,132.31,29.02]
[1744714803256,0.05433011,132.34,132.31,29.07612806]
[1744714803456,7.5577,132.33,132.31,29.07612806]
[1744714803658,0.05433011,132.34,132.31,0.05612806]
[1744714803860,0.05433011,132.34,132.32,36.29498648]
[1744714804160,7.5549,132.38,132.32,36.29498648]
[1744714804349,7.5549,132.38,132.34,7.27498648]
[1744714804555,36.29498648,132.41,132.33,2.0303]
[1744714804855,38.36998648,132.41,132.33,2.0303]
[1744714805059,7.5551,132.37,132.36,0.05595034]
[1744714806374,31.095,132.41,132.36,0.05595034]
[1744714806859,7.5543,132.39,132.36,7.61135034]
[1744714807458,195.70149848,132.48,132.38,7.27498648]
[1744714807768,3.9741,132.47,132.4,0.05776633]
[1744714808060,7.27498648,132.46,132.4,0.05776633]
[1744714808464,7.5529,132.41,132.4,0.05776633]
[1744714808763,3.9741,132.47,132.4,0.05776633]
[1744714808962,3.9741,132.47,132.4,7.33275281]
[1744714809160,7.5516,132.44,132.41,7.5526]
[1744714809363,32.9941,132.47,132.41,0.05777665]
[1744714809563,7.5507,132.45,132.42,7.5518]
[1744714810064,7.5507,132.45,132.43,7.5517]
[1744714810263,7.5503,132.46,132.43,7.5517]
[1744714810465,7.5503,132.46,132.43,7.60291186]
[1744714810664,180.32918496,132.49,132.43,0.05121186]
[1744714810865,7.5511,132.44,132.43,0.05121186]
[1744714812765,7.5534,132.4,132.39,29.02]
[1744714812956,7.5534,132.4,132.37,7.5551]
[1744714813360,1.9564,132.44,132.36,36.27498648]
[1744714813560,7.27498648,132.41,132.36,29.0]
[1744714813763,7.32393112,132.41,132.39,0.05640159]
[1744714814166,7.5534,132.4,132.39,0.05640159]
[1744714816864,7.5557,132.36,132.34,543.98]
[1744714817061,7.5557,132.36,132.33,29.0]
[1744714817258,7.27498648,132.39,132.33,7.5572]
[1744714817464,7.27498648,132.37,132.31,1.9786]
[1744714817870,7.27498648,132.37,132.31,9.5366]
[1744714818066,29.0,132.38,132.31,9.5366]
[1744714818067,0.05060507,132.35,132.33,0.05321881]
[1744714818460,0.05060507,132.35,132.34,14.83178648]
[1744714819373,36.25498648,132.41,132.34,7.27498648]
[1744714819671,28.98,132.41,132.34,36.25498648]
[1744714819865,7.5543,132.39,132.36,7.5556]
[1744714820267,28.98,132.41,132.34,36.25498648]
[1744714820466,0.04873222,132.39,132.36,7.61002015]
[1744714821072,0.04873222,132.39,132.36,7.32930663]
[1744714822071,0.04873222,132.39,132.38,7.5546]
[1744714823070,0.04873222,132.39,132.38,36.5346]
[1744714826078,7.60273222,132.39,132.38,28.98]
[1744714826376,0.04873222,132.39,132.36,0.05432015]
[1744714826875,7.5551,132.37,132.36,0.05432015]
[1744714830573,7.5551,132.38,132.36,0.05432015]
[1744714830878,7.5551,132.38,132.36,7.60992015]
[1744714831078,0.04873222,132.39,132.36,7.60992015]
[1744714831378,7.60303222,132.39,132.36,7.60992015]
[1744714831577,0.04873222,132.39,132.37,7.5548]
[1744714831883,0.04873222,132.39,132.36,7.32930663]
[1744714832074,0.04873222,132.39,132.36,9.31140663]
[1744714832272,0.04873222,132.39,132.38,14.82958648]
[1744714832470,7.5522,132.43,132.38,7.27498648]
[1744714832677,7.5522,132.43,132.4,7.5534]
[1744714833481,7.5522,132.43,132.4,7.60341772]
[1744714833782,28.98,132.49,132.4,7.3250042]
[1744714833983,30.93,132.49,132.43,0.05611778]
[1744714834282,7.5504,132.46,132.43,7.60761778]
[1744714834581,30.93,132.49,132.43,7.60761778]
[1744714835278,7.5503,132.46,132.43,7.60761778]
[1744714835479,30.93,132.49,132.43,0.05611778]
[1744714835981,7.5509,132.45,132.43,0.05611778]
[1744714836381,30.93,132.49,132.43,0.05611778]
[1744714836582,7.5511,132.44,132.43,0.05611778]
[1744714841486,7.5511,132.45,132.43,0.05611778]
[1744714841687,7.27498648,132.48,132.43,0.05611778]
[1744714842588,7.5511,132.44,132.43,0.05611778]
[1744714843384,30.93,132.49,132.43,0.05611778]
[1744714843589,30.93,132.49,132.44,7.27498648]
[1744714843788,1.95,132.49,132.44,7.27498648]
[1744714843986,7.5489,132.48,132.44,7.27498648]
[1744714845191,7.5489,132.48,132.45,7.5505]
[1744714845592,7.5486,132.49,132.44,7.27498648]
[1744714845792,28.96,132.52,132.45,7.5503]
[1744714845991,28.96,132.52,132.47,0.0512029]
[1744714847390,7.5484,132.49,132.47,0.0512029]
[1744714848693,7.5484,132.49,132.47,7.6006029]
[1744714848891,7.5489,132.48,132.47,0.0512029]
[1744714850099,7.5508,132.45,132.43,28.96]
[1744714850898,7.5511,132.44,132.43,28.96]
[1744714851102,9.30348648,132.48,132.35,560.30550168]
[1744714851103,36.21498648,132.46,132.39,28.94]
[1744714851298,7.33060163,132.44,132.41,0.05715854]
[1744714852301,7.5523,132.42,132.41,0.05715854]
[1744714857905,7.552,132.43,132.41,0.05715854]
[1744714859203,7.5523,132.42,132.41,0.05715854]
[1744714860606,7.5546,132.38,132.37,28.94]
[1744714860808,7.27498648,132.38,132.32,33.1073]
[1744714861006,7.27498648,132.38,132.32,31.0596]
[1744714861203,7.5569,132.34,132.32,31.0596]
[1744714861504,11.63829422,132.39,132.32,31.0596]
[1744714861703,11.63829422,132.39,132.32,36.54854832]
[1744714861908,0.0580678,132.37,132.32,36.54854832]
[1744714862407,7.5571,132.34,132.32,28.99054832]
[1744714862707,7.61484979,132.34,132.32,28.99054832]
[1744714864009,0.05774979,132.34,132.32,36.54844832]
[1744714864210,0.05774979,132.34,132.32,28.99054832]
[1744714864613,2.1327,132.41,132.32,40.62884254]
[1744714864909,30.9822,132.43,132.34,11.63829422]
[1744714865108,7.5546,132.39,132.35,7.5559]
[1744714865310,7.5546,132.39,132.34,11.63829422]
[1744714865510,33.1348,132.43,132.34,11.63829422]
[1744714865809,0.05251621,132.38,132.35,0.05702921]
[1744714866208,7.5557,132.36,132.35,0.05702921]
[1744714869509,7.5585,132.32,132.29,35.1674]
[1744714869713,28.94,132.35,132.28,7.5598]
[1744714870712,7.5589,132.31,132.3,0.05602971]
[1744714871011,7.5582,132.32,132.3,0.05602971]
[1744714871214,0.04878902,132.33,132.3,0.05602971]
[1744714871410,0.04878902,132.33,132.3,28.99602971]
[1744714872412,0.04878902,132.33,132.31,7.5586]
[1744714872813,0.04878902,132.33,132.3,28.99602971]
[1744714873006,0.04878902,132.33,132.32,7.558]
[1744714873407,28.94,132.41,132.32,11.63829422]
[1744714873808,28.94,132.41,132.33,2.1446]
[1744714874002,28.94,132.41,132.34,28.94]
[1744714874206,7.5543,132.39,132.36,7.5557]
[1744714874406,7.60591841,132.39,132.36,7.60425704]
[1744714874609,0.05161841,132.39,132.36,7.60425704]
[1744714874806,0.05161841,132.39,132.36,0.04855704]
[1744714875312,7.60591841,132.39,132.36,7.60425704]
[1744714875911,0.05161841,132.39,132.36,0.04855704]
[1744714876413,7.5548,132.38,132.36,0.04855704]
[1744714876818,0.05161841,132.39,132.36,0.04855704]
[1744714877009,0.05161841,132.39,132.37,7.5547]
[1744714877406,0.05161841,132.39,132.36,0.04855704]
[1744714877614,7.60561841,132.39,132.36,7.60395704]
[1744714878014,0.05161841,132.39,132.36,0.04855704]
[1744714878615,7.60561841,132.39,132.36,7.60385704]
[1744714879416,7.5546,132.38,132.36,7.60385704]
[1744714879716,0.05161841,132.39,132.36,7.60385704]
[1744714880619,7.60601841,132.39,132.37,7.5551]
[1744714881016,7.60601841,132.39,132.36,0.04855704]
[1744714881212,7.5546,132.38,132.36,0.04855704]
[1744714881418,0.05161841,132.39,132.36,0.04855704]
[1744714881818,7.5546,132.38,132.36,0.04855704]
[1744714882219,0.05161841,132.39,132.36,0.04855704]
[1744714882617,7.60601841,132.39,132.36,7.60395704]
[1744714885919,0.05161841,132.39,132.36,0.04855704]
[1744714886121,0.05161841,132.39,132.37,7.26768106]
[1744714886424,0.05161841,132.39,132.38,28.92]
[1744714886925,572.82,132.47,132.38,28.92]
[1744714887218,572.82,132.47,132.4,7.26768106]
[1744714887413,7.5529,132.41,132.39,7.5537]
[1744714887621,572.82,132.47,132.38,36.18768106]
[1744714887815,572.82,132.47,132.4,7.26768106]
[1744714888018,28.92,132.47,132.42,7.31581058]
[1744714888214,4.0514,132.48,132.42,36.23581058]
[1744714888618,7.5497,132.47,132.44,7.5509]
[1744714888920,2.1449,132.49,132.44,0.04925021]
[1744714889121,7.5504,132.46,132.44,0.04925021]
[1744714889621,7.5496,132.47,132.44,0.04925021]
[1744714889821,2.1449,132.49,132.44,0.04925021]
[1744714890524,7.5506,132.45,132.44,0.04925021]
[1744714901230,7.5533,132.41,132.39,28.92]
[1744714902031,28.92,132.46,132.39,28.92]
[1744714902230,0.05005054,132.44,132.41,0.0539082]
[1744714902432,7.5523,132.42,132.41,0.0539082]
[1744714912138,7.5519,132.43,132.41,0.0539082]
[1744714913935,0.05005054,132.44,132.41,0.0539082]
[1744714914441,0.05005054,132.44,132.42,7.5518]
[1744714914637,0.05005054,132.44,132.41,0.0539082]
[1744714915240,0.05005054,132.44,132.43,7.5517]
[1744714916442,0.05005054,132.44,132.43,28.88]
[1744714916643,0.05005054,132.44,132.43,36.14056516]
[1744714917038,0.05005054,132.44,132.43,43.69226516]
[1744714917235,0.05005054,132.44,132.43,36.4317]
[1744714917434,0.05005054,132.44,132.43,28.88]
[1744714918443,7.60115054,132.44,132.43,28.88]
[1744714918841,7.60115054,132.44,132.41,7.6063082]
[1744714919241,7.3106157,132.44,132.41,0.0539082]
[1744714920845,7.5523,132.42,132.41,0.0539082]
[1744714922442,7.26056516,132.42,132.37,28.88]
[1744714922634,9.32046516,132.42,132.37,28.88]
[1744714922944,9.32046516,132.42,132.34,30.9755]
[1744714923338,7.26056516,132.4,132.34,28.88]
[1744714923542,0.05524149,132.39,132.37,0.05372248]
[1744714923739,7.5546,132.38,132.37,0.05372248]
[1744714925945,0.05524149,132.39,132.37,0.05372248]
[1744714925946,7.60974149,132.39,132.37,0.05372248]
[1744714926442,0.05524149,132.39,132.37,0.05372248]
[1744714926848,0.05524149,132.39,132.37,7.60882248]
[1744714927342,0.05524149,132.39,132.38,7.26056516]
[1744714927547,28.9,132.44,132.39,7.554]
[1744714927947,543.64,132.46,132.4,7.26056516]
[1744714928147,33.1433,132.47,132.4,7.26056516]
[1744714928449,7.5512,132.44,132.4,7.26056516]
[1744714928649,7.5512,132.44,132.42,0.05805094]
[1744714930557,7.5517,132.43,132.42,0.05805094]
[1744714932858,7.554,132.39,132.38,28.9]
[1744714933058,36.14056516,132.43,132.35,38.5666]
[1744714933559,7.5554,132.37,132.35,31.0106]
[1744714933858,36.14056516,132.43,132.35,31.0106]
[1744714934159,0.04806359,132.4,132.38,0.05623628]
[1744714934658,7.60176359,132.4,132.38,0.05623628]
[1744714934859,0.04806359,132.4,132.38,0.05623628]
[1744714935259,0.04806359,132.4,132.38,7.31680144]
[1744714935457,0.04806359,132.4,132.39,28.88]
[1744714935661,0.04806359,132.4,132.39,36.434]
[1744714937257,2.09,132.47,132.39,28.88]
[1744714937459,2.09,132.47,132.4,7.26056516]
[1744714937460,7.5508,132.45,132.4,7.26056516]
[1744714938053,7.5512,132.44,132.41,7.5526]
[1744714938465,7.60000878,132.44,132.41,7.60488522]
[1744714939968,7.5518,132.43,132.41,0.05228522]
[1744714940167,0.04880878,132.44,132.41,0.05228522]
[1744714940564,7.5523,132.42,132.41,0.05228522]
[1744714941261,7.26056516,132.43,132.36,28.86]
[1744714941467,7.26056516,132.41,132.36,28.86]
[1744714942167,28.86,132.4,132.33,30.8841]
[1744714942361,7.26056516,132.39,132.35,0.05412246]
[1744714942667,7.5559,132.36,132.35,2.246e-05]
[1744714942874,28.86,132.36,132.27,28.86]
[1744714943166,28.86,132.36,132.29,11.63573471]
[1744714943366,28.86,132.39,132.29,11.63573471]
[1744714943566,11.63573471,132.38,132.29,7.5594]
[1744714943869,0.05109455,132.35,132.32,0.04974507]
[1744714944164,7.5574,132.33,132.32,0.04974507]
[1744714944360,11.63573471,132.34,132.24,4.1124]
[1744714944566,11.63573471,132.32,132.24,32.9724]
[1744714944862,7.5605,132.28,132.24,40.5346]
[1744714945266,40.51573471,132.32,132.24,32.9724]
[1744714945466,7.5606,132.28,132.27,0.04945079]
[1744714947165,7.562,132.25,132.24,4.1124]
[1744714947361,11.63573471,132.28,132.21,30.97]
[1744714947568,7.5629,132.24,132.21,30.97]
[1744714947765,28.88,132.29,132.21,30.97]
[1744714947966,28.88,132.29,132.22,7.5632]
[1744714948166,0.05721769,132.27,132.24,0.0507254]
[1744714948766,7.5614,132.26,132.24,0.0507254]
[1744714948966,0.05721769,132.27,132.24,0.0507254]
[1744714949667,7.5616,132.26,132.24,0.0507254]
[1744714950057,7.5614,132.26,132.24,0.0507254]
[1744714951364,0.05721769,132.27,132.24,0.0507254]
[1744714952771,7.61811769,132.27,132.24,0.0507254]
[1744714952966,0.05721769,132.27,132.24,0.0507254]
[1744714953566,7.562,132.25,132.24,0.0507254]
[1744714955665,0.05721769,132.27,132.24,0.0507254]
[1744714955866,28.9,132.26,132.24,0.0507254]
[1744714956069,40.53573471,132.26,132.21,2.09]
[1744714956267,40.53573471,132.26,132.19,4.2237]
[1744714956571,11.63573471,132.24,132.15,30.9046]
[1744714956771,7.5657,132.19,132.16,4.0937]
[1744714957075,7.5657,132.19,132.16,0.05143331]
[1744714957076,7.61842617,132.19,132.16,0.05143331]
[1744714957967,7.5661,132.18,132.16,0.05143331]
[1744714958373,0.05272617,132.19,132.16,0.05143331]
[1744714958568,7.5666,132.17,132.16,0.05143331]
[1744714958769,0.05272617,132.19,132.16,0.05143331]
[1744714960375,0.05272617,132.19,132.17,7.5665]
[1744714961174,7.61852617,132.19,132.16,7.61833331]
[1744714961370,0.05272617,132.19,132.16,0.05143331]
[1744714961675,0.05272617,132.19,132.17,7.5664]
[1744714961869,0.05272617,132.19,132.16,0.05143331]
[1744714962275,7.61852617,132.19,132.16,7.61803331]
[1744714962572,0.05272617,132.19,132.16,0.05143331]
[1744714963477,7.5666,132.17,132.16,0.05143331]
[1744714964374,7.5683,132.14,132.12,4.0937]
[1744714964571,28.9,132.17,132.11,30.9046]
[1744714964772,11.63573471,132.16,132.11,2.0046]
[1744714964970,28.9,132.17,132.11,2.0046]
[1744714965277,28.9,132.17,132.11,9.5745]
[1744714965476,7.62066194,132.15,132.13,0.04867759]
[1744714965676,0.05256194,132.15,132.13,0.04867759]
[1744714965879,7.5683,132.14,132.13,0.04867759]
[1744714966376,40.55573471,132.14,132.11,2.0046]
[1744714966677,7.5694,132.12,132.11,2.0046]
[1744714966870,7.5694,132.12,132.07,4.1097]
[1744714966871,40.55573471,132.14,132.07,4.1097]
[1744714967070,28.92,132.14,132.08,7.5714]
[1744714967473,7.57,132.11,132.1,0.05238449]
[1744714968769,7.62035052,132.12,132.08,7.5714]
[1744714968969,1.9583,132.11,132.05,28.92]
[1744714969375,7.5714,132.09,132.06,7.5728]
[1744714969574,7.5714,132.09,132.06,5.6865]
[1744714969779,0.05620816,132.09,132.06,0.054408]
[1744714970078,0.05620816,132.09,132.07,7.5722]
[1744714970378,0.05620816,132.09,132.06,0.054408]
[1744714970679,28.9,132.17,132.06,19.27014271]
[1744714970885,28.9,132.17,132.06,11.63573471]
[1744714971179,7.5673,132.16,132.13,7.5685]
[1744714971379,40.53573471,132.2,132.12,28.9]
[1744714971780,0.05660196,132.17,132.15,0.05766542]
[1744714973179,0.05660196,132.17,132.15,28.95766542]
[1744714973481,0.05660196,132.17,132.16,7.5671]
[1744714976883,0.05660196,132.17,132.15,28.95766542]
[1744714977486,0.05660196,132.17,132.16,7.5671]
[1744714978286,0.05660196,132.17,132.15,28.95766542]
[1744714978485,0.05660196,132.17,132.15,0.05766542]
[1744714978786,7.5671,132.16,132.15,0.05766542]
[1744714979489,0.05660196,132.17,132.12,7.5692]
[1744714979684,0.05660196,132.17,132.11,573.58]
[1744714979885,0.05660196,132.17,132.11,581.1497]
[1744714980087,0.05660196,132.17,132.11,573.58]
[1744714980685,7.5678,132.15,132.13,0.05098573]
[1744714980984,7.5683,132.14,132.13,0.05098573]
[1744714981686,7.5683,132.14,132.08,28.9]
[1744714981687,11.63573471,132.14,132.08,28.9]
[1744714982188,7.5696,132.12,132.09,7.5709]